[Event "*** Titled Tuesday 3|2 Blitz"]
[Site "Chess.com"]
[Date "2016.08.02"]
[Round "6"]
[White "Alexander_Moskalenko"]
[Black "jcibarra"]
[Result "1-0"]
[WhiteElo "2629"]
[BlackElo "2648"]
[TimeControl "180+2"]
[EndTime "12:23:04 PDT"]
[Termination "Alexander_Moskalenko won by resignation"]

1. d4 {[%clk 0:03:01.9]} 1... Nf6 {[%clk 0:03:00.3]} 2. c4 {[%clk 0:03:03.2]}
2... d6 {[%clk 0:03:01.8]} 3. Nf3 {[%clk 0:03:03.3]} 3... g6 {[%clk 0:03:03.1]}
4. Nc3 {[%clk 0:03:03.5]} 4... Bf5 {[%clk 0:03:04.6]} 5. g3 {[%clk 0:03:04.5]}
5... Ne4 {[%clk 0:03:05.3]} 6. Bg2 {[%clk 0:02:53.3]} 6... Nxc3 {[%clk
0:03:05.8]} 7. bxc3 {[%clk 0:02:55.2]} 7... Be4 {[%clk 0:03:07.4]} 8. O-O {[%clk
0:02:52.4]} 8... Bg7 {[%clk 0:03:08.6]} 9. Qb3 {[%clk 0:02:53.1]} 9... O-O
{[%clk 0:03:09.7]} 10. a4 {[%clk 0:02:51.4]} 10... b6 {[%clk 0:03:10.5]} 11. Bh3
{[%clk 0:02:49.5]} 11... Nc6 {[%clk 0:03:08.2]} 12. Nd2 {[%clk 0:02:34.5]} 12...
Na5 {[%clk 0:03:08.6]} 13. Qa2 {[%clk 0:02:36.1]} 13... Bb7 {[%clk 0:03:06.8]}
14. Bb2 {[%clk 0:02:35.1]} 14... c5 {[%clk 0:03:07.7]} 15. d5 {[%clk 0:02:30.1]}
15... Ba6 {[%clk 0:02:54.5]} 16. e4 {[%clk 0:02:26.7]} 16... Qe8 {[%clk
0:02:44.9]} 17. f4 {[%clk 0:02:27.2]} 17... e5 {[%clk 0:02:45.6]} 18. f5 {[%clk
0:02:26]} 18... Bh6 {[%clk 0:02:46.3]} 19. Bc1 {[%clk 0:02:27.3]} 19... f6
{[%clk 0:02:22.9]} 20. Qc2 {[%clk 0:02:18.7]} 20... Bxd2 {[%clk 0:02:11.4]} 21.
Bxd2 {[%clk 0:02:20.6]} 21... g5 {[%clk 0:02:12.5]} 22. Bg4 {[%clk 0:02:05.4]}
22... Bxc4 {[%clk 0:02:06]} 23. Rfb1 {[%clk 0:01:55.8]} 23... Kh8 {[%clk
0:01:57.5]} 24. Kg2 {[%clk 0:01:55.3]} 24... Rg8 {[%clk 0:01:57]} 25. Be3 {[%clk
0:01:52.3]} 25... Qf7 {[%clk 0:01:53.6]} 26. Be2 {[%clk 0:01:42.3]} 26... Rgb8
{[%clk 0:01:36.2]} 27. Bf2 {[%clk 0:01:35.3]} 27... a6 {[%clk 0:01:33.8]} 28.
Bxc4 {[%clk 0:01:31.7]} 28... Nxc4 {[%clk 0:01:35]} 29. Qe2 {[%clk 0:01:33.6]}
29... Na5 {[%clk 0:01:31.8]} 30. Rb2 {[%clk 0:01:35.1]} 30... Qd7 {[%clk
0:01:29.8]} 31. Rab1 {[%clk 0:01:24.7]} 31... Qc7 {[%clk 0:01:09.6]} 32. g4
{[%clk 0:01:15.2]} 32... Rb7 {[%clk 0:01:09.8]} 33. h4 {[%clk 0:01:15.9]} 33...
h6 {[%clk 0:01:05.7]} 34. hxg5 {[%clk 0:01:16.8]} 34... hxg5 {[%clk 0:01:06.3]}
35. Be3 {[%clk 0:01:18.7]} 35... Kg8 {[%clk 0:01:03.9]} 36. Rh1 {[%clk
0:01:18.9]} 36... Qd8 {[%clk 0:01:01.3]} 37. Rbb1 {[%clk 0:01:18.9]} 37... Raa7
{[%clk 0:00:59.1]} 38. Kg3 {[%clk 0:01:15.4]} 38... Rh7 {[%clk 0:00:38.7]} 39.
Rxh7 {[%clk 0:01:16.2]} 39... Kxh7 {[%clk 0:00:28.9]} 40. Rh1+ {[%clk
0:01:16.6]} 40... Kg7 {[%clk 0:00:27]} 41. Qh2 {[%clk 0:01:18.5]} 41... Qg8
{[%clk 0:00:25.5]} 42. Qh6+ {[%clk 0:01:14]} 42... Kf7 {[%clk 0:00:26.5]} 43.
Bxg5 {[%clk 0:01:14.2]} 43... Qg7 {[%clk 0:00:17.8]} 44. Bxf6 {[%clk 0:00:51.6]}
44... Qxf6 {[%clk 0:00:12.2]} 45. Qh7+ {[%clk 0:00:53]} 45... Qg7 {[%clk
0:00:12.5]} 46. f6 {[%clk 0:00:54.6]} 46... Qxh7 {[%clk 0:00:06.9]} 47. Rxh7+
{[%clk 0:00:55.5]} 47... Kxf6 {[%clk 0:00:08.8]} 48. Rxa7 {[%clk 0:00:57.4]}
48... Nc4 {[%clk 0:00:10.4]} 49. Rxa6 {[%clk 0:00:54.6]} 49... Kg5 {[%clk
0:00:11.8]} 50. Kf3 {[%clk 0:00:53.6]} 50... Kh4 {[%clk 0:00:11.1]} 51. Ra8
{[%clk 0:00:53.5]} 51... Nd2+ {[%clk 0:00:12.2]} 52. Ke3 {[%clk 0:00:54.6]}
52... Nc4+ {[%clk 0:00:12.8]} 53. Kd3 {[%clk 0:00:54.4]} 53... Nb2+ {[%clk
0:00:14]} 54. Kc2 {[%clk 0:00:55.4]} 54... Nc4 {[%clk 0:00:15.4]} 55. Rg8 {[%clk
0:00:53.8]} 55... Ne3+ {[%clk 0:00:11.7]} 56. Kd3 {[%clk 0:00:55]} 56... Nxg4
{[%clk 0:00:13.2]} 57. Rb8 {[%clk 0:00:55.2]} 57... Nf2+ {[%clk 0:00:13.6]} 58.
Kc4 {[%clk 0:00:56.4]} 58... Nxe4 {[%clk 0:00:12.6]} 59. Rxb6 {[%clk 0:00:58]}
59... Nd2+ {[%clk 0:00:04.5]} 60. Kb5 {[%clk 0:00:58.6]} 60... e4 {[%clk
0:00:04.4]} 61. Rxd6 {[%clk 0:00:58.8]} 61... Kg4 {[%clk 0:00:04.8]} 62. Re6
{[%clk 0:01:00]} 62... Kf5 {[%clk 0:00:06.3]} 63. a5 {[%clk 0:01:00.7]} 63...
Nf3 {[%clk 0:00:07.6]} 64. a6 {[%clk 0:01:01]} 64... Ne5 {[%clk 0:00:09.2]} 65.
Rxe5+ {[%clk 0:01:02.1]} 65... Kxe5 {[%clk 0:00:10.3]} 66. a7 {[%clk 0:01:04]}
66... e3 {[%clk 0:00:10.6]} 67. a8=Q {[%clk 0:01:05.6]} 67... e2 {[%clk
0:00:11.9]} 68. Qe8+ {[%clk 0:01:07.4]} 68... Kxd5 {[%clk 0:00:13]} 69. Qxe2
{[%clk 0:01:09]} 1-0

[Event "*** Titled Tuesday 3|2 Blitz"]
[Site "Chess.com"]
[Date "2016.08.02"]
[Round "6"]
[White "saraswathii"]
[Black "WanderingPuppet"]
[Result "1-0"]
[WhiteElo "2132"]
[BlackElo "2272"]
[TimeControl "180+2"]
[EndTime "12:23:39 PDT"]
[Termination "saraswathii won by checkmate"]

1. e4 {[%clk 0:03:01.9]} 1... c5 {[%clk 0:02:59.5]} 2. Nf3 {[%clk 0:02:59.1]}
2... d6 {[%clk 0:02:59]} 3. d3 {[%clk 0:03:00.3]} 3... Nf6 {[%clk 0:02:59.9]} 4.
g3 {[%clk 0:03:01.3]} 4... g6 {[%clk 0:03:00.8]} 5. Bg2 {[%clk 0:03:02.5]} 5...
Bg7 {[%clk 0:03:02.6]} 6. O-O {[%clk 0:03:03.4]} 6... Nc6 {[%clk 0:03:04.1]} 7.
c3 {[%clk 0:02:59.3]} 7... O-O {[%clk 0:03:05]} 8. Qe2 {[%clk 0:02:58.8]} 8...
d5 {[%clk 0:03:05.3]} 9. e5 {[%clk 0:02:59.4]} 9... Nd7 {[%clk 0:03:06.2]} 10.
Bf4 {[%clk 0:02:58.3]} 10... Nb6 {[%clk 0:02:58.1]} 11. Nbd2 {[%clk 0:02:54.9]}
11... Qd7 {[%clk 0:02:51.8]} 12. d4 {[%clk 0:02:34.5]} 12... cxd4 {[%clk
0:02:43.5]} 13. cxd4 {[%clk 0:02:36.4]} 13... Nd8 {[%clk 0:02:44.7]} 14. Be3
{[%clk 0:02:29.2]} 14... Qe8 {[%clk 0:02:23.3]} 15. h3 {[%clk 0:02:13.7]} 15...
Bd7 {[%clk 0:02:24]} 16. Rfc1 {[%clk 0:02:08.9]} 16... Ne6 {[%clk 0:02:04.1]}
17. b3 {[%clk 0:02:06.4]} 17... Bb5 {[%clk 0:01:48.7]} 18. Qd1 {[%clk
0:02:05.9]} 18... Qd7 {[%clk 0:01:44.5]} 19. Nf1 {[%clk 0:02:02.3]} 19... Rfc8
{[%clk 0:01:34.9]} 20. a4 {[%clk 0:02:00.4]} 20... Ba6 {[%clk 0:01:20.7]} 21. a5
{[%clk 0:01:44.2]} 21... Rxc1 {[%clk 0:01:20.8]} 22. Rxc1 {[%clk 0:01:46.1]}
22... Nc8 {[%clk 0:01:18.4]} 23. N1h2 {[%clk 0:01:44.9]} 23... Qd8 {[%clk
0:00:49.6]} 24. Qd2 {[%clk 0:01:40.5]} 24... b6 {[%clk 0:00:47.7]} 25. Bh6
{[%clk 0:01:33.4]} 25... bxa5 {[%clk 0:00:44.1]} 26. Ng4 {[%clk 0:01:31.6]}
26... Bxh6 {[%clk 0:00:27.4]} 27. Nxh6+ {[%clk 0:01:22.6]} 27... Kg7 {[%clk
0:00:26.9]} 28. Ng4 {[%clk 0:00:58.5]} 28... Nb6 {[%clk 0:00:26]} 29. Rc6 {[%clk
0:00:42.1]} 29... Bc8 {[%clk 0:00:14.8]} 30. Qh6+ {[%clk 0:00:28.9]} 30... Kg8
{[%clk 0:00:14.6]} 31. Rxe6 {[%clk 0:00:28.3]} 31... Qf8 {[%clk 0:00:07.5]} 32.
Qxf8+ {[%clk 0:00:16.9]} 32... Kxf8 {[%clk 0:00:09.4]} 33. Rc6 {[%clk 0:00:18]}
33... Bd7 {[%clk 0:00:05.5]} 34. Rc5 {[%clk 0:00:18.1]} 34... a4 {[%clk
0:00:06.6]} 35. bxa4 {[%clk 0:00:20]} 35... Bxa4 {[%clk 0:00:07.5]} 36. Ng5
{[%clk 0:00:20.6]} 36... h6 {[%clk 0:00:07.7]} 37. Nxh6 {[%clk 0:00:21.4]} 37...
Kg7 {[%clk 0:00:07.7]} 38. Nhxf7 {[%clk 0:00:21.9]} 38... Rb8 {[%clk 0:00:07.3]}
39. e6 {[%clk 0:00:21.9]} 39... Bb3 {[%clk 0:00:07.2]} 40. Rc7 {[%clk
0:00:21.9]} 40... Kf6 {[%clk 0:00:08]} 41. Rxa7 {[%clk 0:00:22.3]} 41... Nc4
{[%clk 0:00:07.6]} 42. Bxd5 {[%clk 0:00:22.6]} 42... Nd2 {[%clk 0:00:08.5]} 43.
Bxb3 {[%clk 0:00:23.4]} 43... Rxb3 {[%clk 0:00:09.6]} 44. h4 {[%clk 0:00:23.5]}
44... Rd3 {[%clk 0:00:06.4]} 45. Ra2 {[%clk 0:00:18.6]} 45... Nc4 {[%clk
0:00:06.6]} 46. Re2 {[%clk 0:00:17.9]} 46... Rxd4 {[%clk 0:00:06.2]} 47. Ne4+
{[%clk 0:00:18.2]} 47... Kg7 {[%clk 0:00:07.1]} 48. Nfg5 {[%clk 0:00:18.2]}
48... Nb6 {[%clk 0:00:05.1]} 49. Nc5 {[%clk 0:00:18.4]} 49... Nd5 {[%clk
0:00:05.7]} 50. Re4 {[%clk 0:00:18.5]} 50... Rd1+ {[%clk 0:00:05.8]} 51. Kg2
{[%clk 0:00:19.9]} 51... Kf6 {[%clk 0:00:07]} 52. Nd7+ {[%clk 0:00:17.2]} 52...
Kg7 {[%clk 0:00:07.1]} 53. Re5 {[%clk 0:00:18.3]} 53... Nc3 {[%clk 0:00:07.5]}
54. Re3 {[%clk 0:00:19.2]} 54... Nd5 {[%clk 0:00:08.2]} 55. Rf3 {[%clk
0:00:20.5]} 55... Re1 {[%clk 0:00:06.1]} 56. Rf7+ {[%clk 0:00:20.4]} 56... Kg8
{[%clk 0:00:07.6]} 57. Rf8+ {[%clk 0:00:18.1]} 57... Kg7 {[%clk 0:00:08.5]} 58.
Rd8 {[%clk 0:00:19]} 58... Nc3 {[%clk 0:00:06.9]} 59. Nc5 {[%clk 0:00:18.2]}
59... Re2 {[%clk 0:00:04.7]} 60. Re8 {[%clk 0:00:17.7]} 60... Kf6 {[%clk
0:00:04.4]} 61. Nd7+ {[%clk 0:00:17.3]} 61... Kf5 {[%clk 0:00:04.3]} 62. Rxe7
{[%clk 0:00:17]} 62... Nd5 {[%clk 0:00:04.9]} 63. Rf7+ {[%clk 0:00:17.8]} 63...
Kg4 {[%clk 0:00:06.5]} 64. Kf1 {[%clk 0:00:18.7]} 64... Ra2 {[%clk 0:00:06.5]}
65. Ne5+ {[%clk 0:00:19.4]} 65... Kh5 {[%clk 0:00:04.9]} 66. Rh7# {[%clk
0:00:20.4]} 1-0

[Event "*** Titled Tuesday 3|2 Blitz"]
[Site "Chess.com"]
[Date "2016.08.02"]
[Round "6"]
[White "Dr-Bassem"]
[Black "TyIerDurden"]
[Result "0-1"]
[WhiteElo "2613"]
[BlackElo "2502"]
[TimeControl "180+2"]
[EndTime "12:25:22 PDT"]
[Termination "TyIerDurden won by checkmate"]

1. e4 {[%clk 0:03:01.4]} 1... e6 {[%clk 0:03:00.8]} 2. d3 {[%clk 0:03:02.2]}
2... d5 {[%clk 0:03:02.7]} 3. Nd2 {[%clk 0:03:03.4]} 3... g6 {[%clk 0:03:01.6]}
4. Ngf3 {[%clk 0:03:04.6]} 4... Bg7 {[%clk 0:03:02.5]} 5. g3 {[%clk 0:03:06]}
5... Nf6 {[%clk 0:03:02.8]} 6. Bg2 {[%clk 0:03:05.8]} 6... O-O {[%clk
0:03:03.9]} 7. O-O {[%clk 0:03:06.8]} 7... dxe4 {[%clk 0:02:58.9]} 8. dxe4
{[%clk 0:03:07]} 8... b6 {[%clk 0:02:36.4]} 9. e5 {[%clk 0:03:05.1]} 9... Nd5
{[%clk 0:02:37.2]} 10. Re1 {[%clk 0:02:44]} 10... Bb7 {[%clk 0:02:34.9]} 11. h4
{[%clk 0:02:41.9]} 11... Nd7 {[%clk 0:02:32]} 12. a3 {[%clk 0:02:40.3]} 12...
Ne7 {[%clk 0:02:31.1]} 13. Nf1 {[%clk 0:02:32.1]} 13... Nc5 {[%clk 0:02:20.5]}
14. Bg5 {[%clk 0:02:22.2]} 14... f6 {[%clk 0:02:10.7]} 15. exf6 {[%clk
0:02:17.7]} 15... Bxf6 {[%clk 0:02:12.6]} 16. Bxf6 {[%clk 0:02:07.4]} 16... Rxf6
{[%clk 0:02:14.5]} 17. Ng5 {[%clk 0:01:50.8]} 17... Bxg2 {[%clk 0:02:16.4]} 18.
Kxg2 {[%clk 0:01:52]} 18... h6 {[%clk 0:02:06.5]} 19. Ne4 {[%clk 0:01:44.5]}
19... Nxe4 {[%clk 0:02:04.6]} 20. Rxe4 {[%clk 0:01:46.4]} 20... Qxd1 {[%clk
0:01:59.5]} 21. Rxd1 {[%clk 0:01:47.8]} 21... Nf5 {[%clk 0:01:55.8]} 22. Nh2
{[%clk 0:01:34.6]} 22... Nd6 {[%clk 0:01:54.9]} 23. Re2 {[%clk 0:01:34.2]} 23...
h5 {[%clk 0:01:56.1]} 24. Nf3 {[%clk 0:01:34]} 24... Re8 {[%clk 0:01:54.1]} 25.
Rde1 {[%clk 0:01:32.1]} 25... Nc4 {[%clk 0:01:53.3]} 26. b3 {[%clk 0:01:16.6]}
26... Nxa3 {[%clk 0:01:53.7]} 27. Ra1 {[%clk 0:01:16.9]} 27... Nb5 {[%clk
0:01:50.3]} 28. c4 {[%clk 0:01:17.2]} 28... Rxf3 {[%clk 0:01:39.2]} 29. Kxf3
{[%clk 0:00:47.3]} 29... Nd4+ {[%clk 0:01:39.9]} 30. Ke3 {[%clk 0:00:48.3]}
30... Nxe2 {[%clk 0:01:41]} 31. Kxe2 {[%clk 0:00:50.2]} 31... a5 {[%clk
0:01:38]} 32. Rd1 {[%clk 0:00:50.2]} 32... Kf7 {[%clk 0:01:35.8]} 33. Rd7+
{[%clk 0:00:48.6]} 33... Re7 {[%clk 0:01:36.9]} 34. Rd8 {[%clk 0:00:49.8]} 34...
Re8 {[%clk 0:01:38.1]} 35. Rd7+ {[%clk 0:00:50.4]} 35... Re7 {[%clk 0:01:39.4]}
36. Rd8 {[%clk 0:00:51.3]} 36... Re8 {[%clk 0:01:40.5]} 37. Rd7+ {[%clk
0:00:51.1]} 37... Re7 {[%clk 0:01:41.8]} 38. Rd8 {[%clk 0:00:51.8]} 38... Kf6
{[%clk 0:01:39.6]} 39. Ke3 {[%clk 0:00:51]} 39... Kf7 {[%clk 0:01:37.9]} 40. Ke4
{[%clk 0:00:49.1]} 40... Kf6 {[%clk 0:01:37.5]} 41. f3 {[%clk 0:00:45.3]} 41...
g5 {[%clk 0:01:34.4]} 42. hxg5+ {[%clk 0:00:44.5]} 42... Kxg5 {[%clk 0:01:36.3]}
43. Ke5 {[%clk 0:00:45.6]} 43... Kg6 {[%clk 0:01:35.3]} 44. f4 {[%clk
0:00:42.2]} 44... Kg7 {[%clk 0:01:34.1]} 45. Rc8 {[%clk 0:00:33.1]} 45... Kf7
{[%clk 0:01:30.5]} 46. Rh8 {[%clk 0:00:25.8]} 46... Kg6 {[%clk 0:01:30.9]} 47.
Rg8+ {[%clk 0:00:26.5]} 47... Kh7 {[%clk 0:01:24.7]} 48. Rg5 {[%clk 0:00:25.1]}
48... Kh6 {[%clk 0:01:25.6]} 49. Kf6 {[%clk 0:00:23.4]} 49... Rd7 {[%clk
0:01:20.4]} 50. Rg6+ {[%clk 0:00:15.7]} 50... Kh7 {[%clk 0:01:18.2]} 51. Rg5
{[%clk 0:00:16.5]} 51... Kh6 {[%clk 0:01:08.8]} 52. Kxe6 {[%clk 0:00:12.8]}
52... Rd6+ {[%clk 0:01:05.4]} 53. Kf7 {[%clk 0:00:12.3]} 53... Rd7+ {[%clk
0:01:06.4]} 54. Ke6 {[%clk 0:00:11.4]} 54... Rd6+ {[%clk 0:01:07.4]} 55. Ke5
{[%clk 0:00:12.2]} 55... Rd3 {[%clk 0:01:05.3]} 56. Rg8 {[%clk 0:00:12.5]} 56...
Re3+ {[%clk 0:01:02.1]} 57. Kf6 {[%clk 0:00:12.7]} 57... Kh7 {[%clk 0:01:03.2]}
58. Rg7+ {[%clk 0:00:13.8]} 58... Kh6 {[%clk 0:01:01.1]} 59. Rxc7 {[%clk
0:00:13.2]} 59... Rxg3 {[%clk 0:01:00.4]} 60. f5 {[%clk 0:00:14.3]} 60... h4
{[%clk 0:00:59.7]} 61. Rc8 {[%clk 0:00:15]} 61... Kh7 {[%clk 0:01:00.4]} 62.
Rc7+ {[%clk 0:00:12.8]} 62... Kh8 {[%clk 0:00:57.2]} 63. Rc8+ {[%clk 0:00:05.7]}
63... Kh7 {[%clk 0:00:55.1]} 64. Rc7+ {[%clk 0:00:06.4]} 64... Kh6 {[%clk
0:00:54.8]} 65. Rd7 {[%clk 0:00:06.5]} 65... h3 {[%clk 0:00:53.7]} 66. Rd8
{[%clk 0:00:07.6]} 66... Kh7 {[%clk 0:00:51.6]} 67. Rd4 {[%clk 0:00:08.7]} 67...
Rxb3 {[%clk 0:00:42.6]} 68. Kf7 {[%clk 0:00:09.1]} 68... Kh6 {[%clk 0:00:41.5]}
69. f6 {[%clk 0:00:10.2]} 69... Kh5 {[%clk 0:00:36.8]} 70. Kg7 {[%clk 0:00:08]}
70... Rg3+ {[%clk 0:00:36.1]} 71. Kh7 {[%clk 0:00:07.5]} 71... h2 {[%clk
0:00:34]} 72. Rd1 {[%clk 0:00:04.5]} 72... Rg1 {[%clk 0:00:32.6]} 73. Rd5+
{[%clk 0:00:02.8]} 73... Rg5 {[%clk 0:00:29.7]} 74. f7 {[%clk 0:00:02.7]} 74...
h1=Q {[%clk 0:00:28.7]} 75. f8=Q {[%clk 0:00:03.2]} 75... Kg4+ {[%clk
0:00:24.2]} 76. Qh6 {[%clk 0:00:04.4]} 76... Qe4+ {[%clk 0:00:22.6]} 77. Kh8
{[%clk 0:00:03.1]} 77... Qe8+ {[%clk 0:00:20.9]} 78. Kh7 {[%clk 0:00:04.1]}
78... Qg8# {[%clk 0:00:18.5]} 0-1

[Event "*** Titled Tuesday 3|2 Blitz"]
[Site "Chess.com"]
[Date "2016.08.02"]
[Round "7"]
[White "Makalexa"]
[Black "calemcc"]
[Result "1-0"]
[WhiteElo "2174"]
[BlackElo "2119"]
[TimeControl "180+2"]
[EndTime "12:31:18 PDT"]
[Termination "Makalexa won by resignation"]

1. e4 {[%clk 0:02:44.2]} 1... e6 {[%clk 0:02:55]} 2. d4 {[%clk 0:02:41.8]} 2...
d5 {[%clk 0:02:54.6]} 3. Nc3 {[%clk 0:02:43.7]} 3... Nf6 {[%clk 0:02:55.4]} 4.
Bg5 {[%clk 0:02:43.7]} 4... dxe4 {[%clk 0:02:56.1]} 5. Nxe4 {[%clk 0:02:43.7]}
5... Be7 {[%clk 0:02:57]} 6. Bxf6 {[%clk 0:02:44.8]} 6... gxf6 {[%clk
0:02:58.7]} 7. Nf3 {[%clk 0:02:35.1]} 7... f5 {[%clk 0:02:44.7]} 8. Nc3 {[%clk
0:02:35.4]} 8... a6 {[%clk 0:02:44]} 9. g3 {[%clk 0:02:32.6]} 9... b5 {[%clk
0:02:44]} 10. Bg2 {[%clk 0:02:34.5]} 10... Bb7 {[%clk 0:02:44.6]} 11. O-O {[%clk
0:02:35.7]} 11... Nd7 {[%clk 0:02:43.6]} 12. d5 {[%clk 0:02:31.7]} 12... b4
{[%clk 0:02:38.3]} 13. dxe6 {[%clk 0:02:31.2]} 13... fxe6 {[%clk 0:02:36]} 14.
Nd4 {[%clk 0:02:28.2]} 14... Bxg2 {[%clk 0:02:15.9]} 15. Qh5+ {[%clk 0:02:25.9]}
15... Kf8 {[%clk 0:02:11]} 16. Nxe6+ {[%clk 0:02:27.8]} 16... Kg8 {[%clk
0:02:10]} 17. Nxd8 {[%clk 0:02:23.3]} 17... Rxd8 {[%clk 0:02:11.9]} 18. Kxg2
{[%clk 0:02:16.8]} 18... bxc3 {[%clk 0:02:12.3]} 19. Rad1 {[%clk 0:02:14.6]}
19... Kg7 {[%clk 0:01:56.6]} 20. Qxf5 {[%clk 0:02:01.8]} 20... Nf6 {[%clk
0:01:56.7]} 21. bxc3 {[%clk 0:01:59.9]} 21... Bd6 {[%clk 0:01:51.1]} 22. Rfe1
{[%clk 0:01:56.1]} 22... Rhf8 {[%clk 0:01:50.8]} 23. Re6 {[%clk 0:01:47.1]}
23... Nd7 {[%clk 0:01:45.8]} 24. Qg4+ {[%clk 0:01:41.5]} 24... Kh8 {[%clk
0:01:44.6]} 25. Rdxd6 {[%clk 0:01:38.8]} 25... cxd6 {[%clk 0:01:41.8]} 26. Re7
{[%clk 0:01:37.5]} 26... Rg8 {[%clk 0:01:43]} 27. Qh4 {[%clk 0:01:29.1]} 27...
Nf8 {[%clk 0:01:40.9]} 28. Qd4+ {[%clk 0:01:29.1]} 1-0

[Event "*** Titled Tuesday 3|2 Blitz"]
[Site "Chess.com"]
[Date "2016.08.02"]
[Round "7"]
[White "Saitama_Hero"]
[Black "Kawhi_Leonard2"]
[Result "1-0"]
[WhiteElo "2216"]
[BlackElo "2100"]
[TimeControl "180+2"]
[EndTime "12:31:27 PDT"]
[Termination "Saitama_Hero won by resignation"]

1. d4 {[%clk 0:03:01.7]} 1... Nf6 {[%clk 0:03:00]} 2. c4 {[%clk 0:03:01.9]} 2...
e6 {[%clk 0:03:01.3]} 3. Nc3 {[%clk 0:03:02.4]} 3... Bb4 {[%clk 0:03:01.1]} 4.
f3 {[%clk 0:03:03.2]} 4... d5 {[%clk 0:03:00.6]} 5. a3 {[%clk 0:03:03.2]} 5...
Bxc3+ {[%clk 0:03:00.4]} 6. bxc3 {[%clk 0:03:05.1]} 6... c5 {[%clk 0:02:58.3]}
7. cxd5 {[%clk 0:03:05.4]} 7... exd5 {[%clk 0:02:58.7]} 8. e3 {[%clk 0:03:04.4]}
8... O-O {[%clk 0:02:55.8]} 9. Bd3 {[%clk 0:03:04.2]} 9... Re8 {[%clk
0:02:56.8]} 10. Ne2 {[%clk 0:03:05.2]} 10... b6 {[%clk 0:02:51.5]} 11. O-O
{[%clk 0:03:05.9]} 11... Ba6 {[%clk 0:02:52.4]} 12. Ng3 {[%clk 0:02:57.4]} 12...
Qc8 {[%clk 0:02:44.4]} 13. e4 {[%clk 0:02:48.1]} 13... dxe4 {[%clk 0:02:29.4]}
14. fxe4 {[%clk 0:02:47.1]} 14... Bxd3 {[%clk 0:02:24]} 15. Qxd3 {[%clk
0:02:45.6]} 15... Nc6 {[%clk 0:02:24.2]} 16. e5 {[%clk 0:02:44.6]} 16... Ng4
{[%clk 0:02:14.7]} 17. Nf5 {[%clk 0:02:22.1]} 17... cxd4 {[%clk 0:02:04.2]} 18.
cxd4 {[%clk 0:02:24]} 18... Qd7 {[%clk 0:01:43.8]} 19. Qg3 {[%clk 0:02:17.5]}
19... h5 {[%clk 0:01:34.8]} 20. Bb2 {[%clk 0:02:03.6]} 20... g6 {[%clk
0:01:28.4]} 21. Nd6 {[%clk 0:02:03.1]} 21... Rf8 {[%clk 0:01:15]} 22. h3 {[%clk
0:02:01.9]} 22... Nh6 {[%clk 0:01:13.8]} 23. d5 {[%clk 0:02:03.1]} 23... Ne7
{[%clk 0:01:12.3]} 24. e6 {[%clk 0:01:52.3]} 24... fxe6 {[%clk 0:01:11.4]} 25.
Qe5 {[%clk 0:01:52]} 1-0

[Event "*** Titled Tuesday 3|2 Blitz"]
[Site "Chess.com"]
[Date "2016.08.02"]
[Round "7"]
[White "josiwales"]
[Black "FearlessKing64"]
[Result "1-0"]
[WhiteElo "2190"]
[BlackElo "2059"]
[TimeControl "180+2"]
[EndTime "12:31:34 PDT"]
[Termination "josiwales won by resignation"]

1. e4 {[%clk 0:03:00.8]} 1... c5 {[%clk 0:03:00.3]} 2. Nc3 {[%clk 0:03:01]} 2...
d6 {[%clk 0:03:00]} 3. g3 {[%clk 0:03:01.5]} 3... g6 {[%clk 0:03:00.7]} 4. Bg2
{[%clk 0:03:03]} 4... Bg7 {[%clk 0:03:02.3]} 5. d3 {[%clk 0:03:04.3]} 5... Nc6
{[%clk 0:03:03.1]} 6. Be3 {[%clk 0:03:05.4]} 6... e6 {[%clk 0:03:04.1]} 7. Nge2
{[%clk 0:03:06.4]} 7... Nge7 {[%clk 0:03:04.9]} 8. Qd2 {[%clk 0:03:07.5]} 8...
Rb8 {[%clk 0:03:03]} 9. Bh6 {[%clk 0:03:07.9]} 9... Bxh6 {[%clk 0:02:56]} 10.
Qxh6 {[%clk 0:03:09.8]} 10... b5 {[%clk 0:02:54]} 11. h4 {[%clk 0:03:07.9]}
11... Qa5 {[%clk 0:02:47.1]} 12. O-O {[%clk 0:03:00.4]} 12... b4 {[%clk
0:02:38.1]} 13. Nd1 {[%clk 0:03:01]} 13... Qc7 {[%clk 0:02:30.1]} 14. Qd2 {[%clk
0:02:56.8]} 14... a5 {[%clk 0:02:23.4]} 15. f4 {[%clk 0:02:57.1]} 15... f5
{[%clk 0:02:20.2]} 16. Nf2 {[%clk 0:02:54.6]} 16... O-O {[%clk 0:02:18.9]} 17.
g4 {[%clk 0:02:51.8]} 17... fxg4 {[%clk 0:01:33.3]} 18. Nxg4 {[%clk 0:02:50.8]}
18... e5 {[%clk 0:01:34.3]} 19. f5 {[%clk 0:02:44.8]} 19... Kh8 {[%clk
0:01:21.9]} 20. Ng3 {[%clk 0:02:37.4]} 20... gxf5 {[%clk 0:01:16.6]} 21. exf5
{[%clk 0:02:37.5]} 21... Rg8 {[%clk 0:01:10.3]} 22. f6 {[%clk 0:02:21.4]} 22...
Bxg4 {[%clk 0:01:09.3]} 23. f7 {[%clk 0:02:15.3]} 23... Rgf8 {[%clk 0:01:02.2]}
24. Qg5 {[%clk 0:02:15.8]} 24... Rxf7 {[%clk 0:00:29.7]} 25. Rxf7 {[%clk
0:02:14.5]} 1-0

[Event "*** Titled Tuesday 3|2 Blitz"]
[Site "Chess.com"]
[Date "2016.08.02"]
[Round "7"]
[White "platy3"]
[Black "ChadaevNikolay"]
[Result "1-0"]
[WhiteElo "2696"]
[BlackElo "2530"]
[TimeControl "180+2"]
[EndTime "12:32:25 PDT"]
[Termination "platy3 won by resignation"]

1. e4 {[%clk 0:03:01.9]} 1... e5 {[%clk 0:02:58.4]} 2. Nf3 {[%clk 0:03:03.1]}
2... Nc6 {[%clk 0:02:57.7]} 3. Bb5 {[%clk 0:03:04.6]} 3... a6 {[%clk 0:02:55.2]}
4. Ba4 {[%clk 0:03:05.7]} 4... g6 {[%clk 0:02:55]} 5. O-O {[%clk 0:02:57.8]}
5... Bg7 {[%clk 0:02:55.4]} 6. c3 {[%clk 0:02:56.5]} 6... Nge7 {[%clk 0:02:56]}
7. d4 {[%clk 0:02:52.1]} 7... exd4 {[%clk 0:02:56.6]} 8. cxd4 {[%clk 0:02:53.5]}
8... O-O {[%clk 0:02:54.5]} 9. d5 {[%clk 0:02:54.2]} 9... b5 {[%clk 0:02:52.8]}
10. Bc2 {[%clk 0:02:55.3]} 10... Na5 {[%clk 0:02:51.3]} 11. Bd2 {[%clk
0:02:56.3]} 11... Nc4 {[%clk 0:02:39.1]} 12. Bc3 {[%clk 0:02:57.2]} 12... Nxb2
{[%clk 0:02:28.4]} 13. Qc1 {[%clk 0:02:47.8]} 13... Nc4 {[%clk 0:02:27.7]} 14.
Bxg7 {[%clk 0:02:49.3]} 14... Kxg7 {[%clk 0:02:28.5]} 15. a4 {[%clk 0:02:51.1]}
15... Bb7 {[%clk 0:02:24.7]} 16. Nbd2 {[%clk 0:02:44.8]} 16... Nxd2 {[%clk
0:02:19.9]} 17. Qxd2 {[%clk 0:02:46.7]} 17... d6 {[%clk 0:02:21.2]} 18. Nd4
{[%clk 0:02:42.6]} 18... Qd7 {[%clk 0:01:33.9]} 19. f4 {[%clk 0:02:33.9]} 19...
c5 {[%clk 0:01:11.3]} 20. dxc6 {[%clk 0:02:20.8]} 20... Nxc6 {[%clk 0:01:09.6]}
21. axb5 {[%clk 0:02:18.4]} 21... axb5 {[%clk 0:01:03.1]} 22. Nxb5 {[%clk
0:02:14.1]} 22... Ba6 {[%clk 0:01:02.7]} 23. Nxd6 {[%clk 0:02:10.4]} 23... Rfd8
{[%clk 0:00:30.7]} 24. Rfd1 {[%clk 0:02:05.2]} 24... Qa7+ {[%clk 0:00:29.7]} 25.
Kh1 {[%clk 0:02:06.2]} 25... Qc5 {[%clk 0:00:27.3]} 26. e5 {[%clk 0:02:02.4]}
26... Rdb8 {[%clk 0:00:14.1]} 27. Be4 {[%clk 0:01:59.6]} 27... Rb6 {[%clk
0:00:12.7]} 28. Rac1 {[%clk 0:01:55.7]} 28... Bc4 {[%clk 0:00:13.7]} 1-0